[Event "Early-Titled-Tuesday-Blitz-October-24-2023"]
[Site "Chess.com"]
[Date "2023.10.24"]
[Round "1"]
[White "PinaSoprano"]
[Black "biostatistician"]
[Result "0-1"]
[WhiteElo "2212"]
[BlackElo "2565"]
[TimeControl "180+1"]
[EndTime "8:06:52 PDT"]
[Termination "biostatistician won by resignation"]

1. d4 {[%clk 0:03:00.9]} 1... Nf6 {[%clk 0:02:59.7]} 2. c4 {[%clk 0:03:01.2]}
2... g6 {[%clk 0:02:59.9]} 3. Nc3 {[%clk 0:03:00.4]} 3... Bg7 {[%clk 0:03:00.3]}
4. e4 {[%clk 0:03:00.3]} 4... d6 {[%clk 0:03:00.7]} 5. h3 {[%clk 0:02:51.6]}
5... O-O {[%clk 0:03:01.6]} 6. Be3 {[%clk 0:02:48.8]} 6... Nc6 {[%clk
0:03:00.2]} 7. Nge2 {[%clk 0:02:16.3]} 7... e5 {[%clk 0:02:58.6]} 8. d5 {[%clk
0:02:16.3]} 8... Nd4 {[%clk 0:02:58.8]} 9. Nxd4 {[%clk 0:02:08.8]} 9... exd4
{[%clk 0:02:59.7]} 10. Bxd4 {[%clk 0:02:09.3]} 10... Nxe4 {[%clk 0:02:58.5]} 11.
Bxg7 {[%clk 0:01:53.1]} 11... Re8 {[%clk 0:02:58.3]} 12. Nxe4 {[%clk 0:01:31]}
12... Rxe4+ {[%clk 0:02:59.2]} 13. Be2 {[%clk 0:01:28.6]} 13... Kxg7 {[%clk
0:02:59]} 14. O-O {[%clk 0:01:28.4]} 14... Qf6 {[%clk 0:02:57.5]} 15. Bd3 {[%clk
0:01:26.6]} 15... Rd4 {[%clk 0:02:55.8]} 16. Qc2 {[%clk 0:01:25.1]} 16... Bf5
{[%clk 0:02:21.4]} 17. Bxf5 {[%clk 0:01:23.5]} 17... Qxf5 {[%clk 0:02:22.3]} 18.
Qxf5 {[%clk 0:01:23.4]} 18... gxf5 {[%clk 0:02:22.3]} 19. b3 {[%clk 0:01:23.5]}
19... Re8 {[%clk 0:02:19.1]} 20. Rfe1 {[%clk 0:00:52.6]} 20... Ree4 {[%clk
0:02:15]} 21. f3 {[%clk 0:00:50.2]} 21... Re5 {[%clk 0:02:05.3]} 22. Rxe5 {[%clk
0:00:34.6]} 22... dxe5 {[%clk 0:02:06.2]} 23. Re1 {[%clk 0:00:34.6]} 23... Kf6
{[%clk 0:02:06.3]} 24. Re2 {[%clk 0:00:35]} 24... h5 {[%clk 0:02:02.8]} 25. Kf2
{[%clk 0:00:35.2]} 25... f4 {[%clk 0:02:00.2]} 26. Ke1 {[%clk 0:00:33.5]} 26...
Rd3 {[%clk 0:01:43.5]} 27. Rd2 {[%clk 0:00:32.3]} 27... Rc3 {[%clk 0:01:41.8]}
28. Ke2 {[%clk 0:00:30.3]} 28... Ke7 {[%clk 0:01:39.2]} 29. Rd3 {[%clk
0:00:29.1]} 29... Rc2+ {[%clk 0:01:38.8]} 30. Rd2 {[%clk 0:00:29.3]} 30... Rc1
{[%clk 0:01:39]} 31. Rd1 {[%clk 0:00:29.4]} 31... Rxd1 {[%clk 0:01:34]} 32. Kxd1
{[%clk 0:00:29.2]} 32... Kd6 {[%clk 0:01:22.3]} 33. Ke2 {[%clk 0:00:27.6]} 33...
f5 {[%clk 0:01:20]} 34. Kd3 {[%clk 0:00:27.5]} 34... a5 {[%clk 0:01:18.1]} 35.
a3 {[%clk 0:00:27.4]} 35... Kc5 {[%clk 0:01:16.6]} 36. Kc3 {[%clk 0:00:27.2]}
36... e4 {[%clk 0:01:15.1]} 37. b4+ {[%clk 0:00:24.5]} 37... axb4+ {[%clk
0:01:16]} 38. axb4+ {[%clk 0:00:25.1]} 38... Kd6 {[%clk 0:01:16]} 39. fxe4
{[%clk 0:00:20.3]} 39... fxe4 {[%clk 0:01:15.9]} 40. Kd4 {[%clk 0:00:20.9]}
40... e3 {[%clk 0:01:16.2]} 41. Kd3 {[%clk 0:00:21.3]} 41... h4 {[%clk
0:01:16.5]} 42. Ke2 {[%clk 0:00:20]} 42... Ke5 {[%clk 0:01:16.8]} 43. Kf3 {[%clk
0:00:19.7]} 43... Kd4 {[%clk 0:01:14.3]} 44. b5 {[%clk 0:00:16.1]} 44... b6
{[%clk 0:01:10.6]} 45. g3 {[%clk 0:00:14.1]} 45... hxg3 {[%clk 0:01:02]} 46. h4
{[%clk 0:00:13.7]} 46... Kd3 {[%clk 0:00:59.7]} 47. h5 {[%clk 0:00:12.3]} 47...
e2 {[%clk 0:01:00.2]} 48. h6 {[%clk 0:00:12.8]} 48... e1=Q {[%clk 0:01:00.5]}
49. h7 {[%clk 0:00:13.2]} 0-1

[Event "Early-Titled-Tuesday-Blitz-October-24-2023"]
[Site "Chess.com"]
[Date "2023.10.24"]
[Round "1"]
[White "Ural_bogatyr"]
[Black "vaniavindy"]
[Result "1-0"]
[WhiteElo "2551"]
[BlackElo "2155"]
[TimeControl "180+1"]
[EndTime "8:06:52 PDT"]
[Termination "Ural_bogatyr won by resignation"]

1. d4 {[%clk 0:03:00.9]} 1... d5 {[%clk 0:02:57.4]} 2. Nc3 {[%clk 0:03:00.8]}
2... Nf6 {[%clk 0:02:53.6]} 3. Bf4 {[%clk 0:03:01.2]} 3... Bf5 {[%clk
0:02:47.7]} 4. e3 {[%clk 0:03:00.6]} 4... e6 {[%clk 0:02:38.2]} 5. f3 {[%clk
0:03:00.4]} 5... Be7 {[%clk 0:02:36.5]} 6. g4 {[%clk 0:03:00.3]} 6... Bg6 {[%clk
0:02:36.1]} 7. h4 {[%clk 0:03:01.2]} 7... h6 {[%clk 0:02:34.4]} 8. Bd3 {[%clk
0:03:00.3]} 8... Bxd3 {[%clk 0:02:33.7]} 9. Qxd3 {[%clk 0:03:01.2]} 9... Nc6
{[%clk 0:02:30.4]} 10. Nge2 {[%clk 0:02:58.4]} 10... Qd7 {[%clk 0:02:28.5]} 11.
O-O-O {[%clk 0:02:51.9]} 11... Bd6 {[%clk 0:02:27.3]} 12. Bxd6 {[%clk
0:02:40.1]} 12... cxd6 {[%clk 0:02:24.1]} 13. Nf4 {[%clk 0:02:35.4]} 13... O-O-O
{[%clk 0:02:11.6]} 14. g5 {[%clk 0:02:33.9]} 14... Ne8 {[%clk 0:02:03.8]} 15. e4
{[%clk 0:02:28.8]} 15... Nc7 {[%clk 0:02:03.1]} 16. exd5 {[%clk 0:02:21.7]}
16... Nb4 {[%clk 0:02:01.5]} 17. Qc4 {[%clk 0:02:18.8]} 17... exd5 {[%clk
0:01:54.7]} 18. Qxb4 {[%clk 0:02:14.6]} 18... Qf5 {[%clk 0:01:53]} 19. Nd3
{[%clk 0:01:42.4]} 19... hxg5 {[%clk 0:01:51]} 20. hxg5 {[%clk 0:01:42]} 20...
Qxg5+ {[%clk 0:01:47.5]} 21. f4 {[%clk 0:01:41.1]} 21... Qg2 {[%clk 0:01:39.6]}
22. Rxh8 {[%clk 0:01:38.7]} 22... Rxh8 {[%clk 0:01:40.5]} 23. Qxd6 {[%clk
0:01:31.8]} 23... b6 {[%clk 0:01:14.9]} 24. Kb1 {[%clk 0:01:19]} 24... Rh2
{[%clk 0:01:13.3]} 25. Rc1 {[%clk 0:01:18.9]} 25... Rh1 {[%clk 0:00:56]} 26. a4
{[%clk 0:01:15]} 26... Rh6 {[%clk 0:00:51.9]} 27. Qf8+ {[%clk 0:01:11.9]} 27...
Kb7 {[%clk 0:00:51.8]} 28. Qxf7 {[%clk 0:01:11.6]} 28... Rf6 {[%clk 0:00:44.2]}
29. Qd7 {[%clk 0:01:11.1]} 29... Rc6 {[%clk 0:00:23.2]} 30. Nb5 {[%clk
0:00:58.8]} 30... a6 {[%clk 0:00:20.4]} 31. Ne5 {[%clk 0:00:57.3]} 31... Rc4
{[%clk 0:00:06.3]} 32. Nd6+ {[%clk 0:00:53.2]} 32... Ka7 {[%clk 0:00:03.3]} 33.
Nexc4 {[%clk 0:00:52.5]} 33... dxc4 {[%clk 0:00:02.8]} 34. Qxc7+ {[%clk
0:00:50.7]} 1-0

[Event "Early-Titled-Tuesday-Blitz-October-24-2023"]
[Site "Chess.com"]
[Date "2023.10.24"]
[Round "1"]
[White "ProfessorChess101"]
[Black "PattyCastillo"]
[Result "1-0"]
[WhiteElo "2531"]
[BlackElo "2029"]
[TimeControl "180+1"]
[EndTime "8:06:54 PDT"]
[Termination "ProfessorChess101 won on time"]

1. e4 {[%clk 0:02:57.8]} 1... c5 {[%clk 0:02:54.3]} 2. Nf3 {[%clk 0:02:54.3]}
2... d6 {[%clk 0:02:53.8]} 3. Bb5+ {[%clk 0:02:53.3]} 3... Nd7 {[%clk
0:02:53.9]} 4. O-O {[%clk 0:02:52.8]} 4... a6 {[%clk 0:02:53.5]} 5. Bxd7+ {[%clk
0:02:50.1]} 5... Bxd7 {[%clk 0:02:53.5]} 6. d4 {[%clk 0:02:51]} 6... cxd4 {[%clk
0:02:53.4]} 7. Qxd4 {[%clk 0:02:51.9]} 7... Nf6 {[%clk 0:02:53.2]} 8. Nc3 {[%clk
0:02:52.5]} 8... e5 {[%clk 0:02:53.2]} 9. Qd3 {[%clk 0:02:50.8]} 9... Bc6 {[%clk
0:02:49]} 10. Nd2 {[%clk 0:02:46.1]} 10... Be7 {[%clk 0:02:46.4]} 11. Nc4 {[%clk
0:02:45.9]} 11... b5 {[%clk 0:02:37.6]} 12. Ne3 {[%clk 0:02:43.4]} 12... O-O
{[%clk 0:02:30.3]} 13. Ncd5 {[%clk 0:02:27]} 13... Nxd5 {[%clk 0:02:20.7]} 14.
Nxd5 {[%clk 0:02:13.9]} 14... Rc8 {[%clk 0:01:30.9]} 15. c3 {[%clk 0:01:54.7]}
15... Bg5 {[%clk 0:01:26.1]} 16. Be3 {[%clk 0:01:48.1]} 16... Bxe3 {[%clk
0:01:18.3]} 17. Nxe3 {[%clk 0:01:47.7]} 17... g6 {[%clk 0:01:04.9]} 18. Rad1
{[%clk 0:01:44.5]} 18... Qg5 {[%clk 0:00:58.7]} 19. Nd5 {[%clk 0:01:27.1]} 19...
Bxd5 {[%clk 0:00:39.7]} 20. Qxd5 {[%clk 0:01:28]} 20... Rfd8 {[%clk 0:00:35.9]}
21. f4 {[%clk 0:01:24.2]} 21... Qe7 {[%clk 0:00:08.5]} 22. f5 {[%clk 0:01:08.8]}
22... Rc5 {[%clk 0:00:07]} 23. Qd2 {[%clk 0:00:59.1]} 23... Rc4 {[%clk
0:00:06.3]} 24. Qe3 {[%clk 0:00:44.3]} 24... Qf8 {[%clk 0:00:05.3]} 25. h4
{[%clk 0:00:39.7]} 25... Qg7 {[%clk 0:00:04.4]} 26. h5 {[%clk 0:00:34.1]} 26...
gxf5 {[%clk 0:00:03.7]} 27. Rxf5 {[%clk 0:00:30.5]} 27... Kh8 {[%clk 0:00:03.6]}
28. Rdf1 {[%clk 0:00:30.1]} 28... Rc7 {[%clk 0:00:01.2]} 29. h6 {[%clk
0:00:27.2]} 1-0

[Event "Early-Titled-Tuesday-Blitz-October-24-2023"]
[Site "Chess.com"]
[Date "2023.10.24"]
[Round "1"]
[White "Apocalyps999"]
[Black "SlavenPastar"]
[Result "1/2-1/2"]
[WhiteElo "2295"]
[BlackElo "2604"]
[TimeControl "180+1"]
[EndTime "8:06:55 PDT"]
[Termination "Game drawn by repetition"]

1. e4 {[%clk 0:03:00.9]} 1... b6 {[%clk 0:02:59.9]} 2. d4 {[%clk 0:03:00.4]}
2... Bb7 {[%clk 0:03:00.2]} 3. Nc3 {[%clk 0:03:00.8]} 3... e6 {[%clk 0:03:00.2]}
4. Nf3 {[%clk 0:03:00.9]} 4... Nf6 {[%clk 0:03:00.5]} 5. Bd3 {[%clk 0:02:56.9]}
5... Bb4 {[%clk 0:03:00.3]} 6. e5 {[%clk 0:02:53.3]} 6... Ne4 {[%clk 0:02:59.8]}
7. Bd2 {[%clk 0:02:20]} 7... Nxd2 {[%clk 0:02:58.3]} 8. Qxd2 {[%clk 0:02:20.3]}
8... Bxf3 {[%clk 0:02:58.4]} 9. gxf3 {[%clk 0:02:20.7]} 9... Qh4 {[%clk
0:02:59]} 10. a3 {[%clk 0:02:14.7]} 10... Bxc3 {[%clk 0:02:56.9]} 11. Qxc3
{[%clk 0:02:13.7]} 11... Nc6 {[%clk 0:02:55.5]} 12. Be4 {[%clk 0:02:05.6]} 12...
O-O-O {[%clk 0:02:50]} 13. a4 {[%clk 0:01:37]} 13... a5 {[%clk 0:02:43.7]} 14.
O-O-O {[%clk 0:01:23.9]} 14... Kb7 {[%clk 0:02:31.1]} 15. d5 {[%clk 0:01:20.4]}
15... exd5 {[%clk 0:02:25.4]} 16. Rxd5 {[%clk 0:01:21.3]} 16... Qe7 {[%clk
0:02:19.8]} 17. Rhd1 {[%clk 0:01:16.3]} 17... Qb4 {[%clk 0:01:54.3]} 18. Qxb4
{[%clk 0:00:56.3]} 18... axb4 {[%clk 0:01:55.2]} 19. Rxd7 {[%clk 0:00:56.2]}
19... Rxd7 {[%clk 0:01:36.7]} 20. Rxd7 {[%clk 0:00:57.1]} 20... Rf8 {[%clk
0:01:36]} 21. c3 {[%clk 0:00:34.4]} 21... b3 {[%clk 0:01:29.7]} 22. Bd5 {[%clk
0:00:29.3]} 22... g5 {[%clk 0:01:19.9]} 23. Rxf7 {[%clk 0:00:22.7]} 23... Rxf7
{[%clk 0:01:16.9]} 24. Bxf7 {[%clk 0:00:22.9]} 24... Nxe5 {[%clk 0:01:17.5]} 25.
Bxb3 {[%clk 0:00:22.8]} 25... Kc6 {[%clk 0:01:14.1]} 26. h3 {[%clk 0:00:18.2]}
26... Nxf3 {[%clk 0:01:07.7]} 27. Bd1 {[%clk 0:00:16.8]} 27... Ng1 {[%clk
0:00:57.7]} 28. Bg4 {[%clk 0:00:16.4]} 28... h5 {[%clk 0:00:53]} 29. Bxh5 {[%clk
0:00:16.5]} 29... Nxh3 {[%clk 0:00:52.2]} 30. f3 {[%clk 0:00:17.4]} 30... Kd5
{[%clk 0:00:41.1]} 31. Kd2 {[%clk 0:00:16.6]} 31... Ke5 {[%clk 0:00:37.4]} 32.
Bg4 {[%clk 0:00:16.9]} 32... Nf2 {[%clk 0:00:33.5]} 33. Bh5 {[%clk 0:00:16.4]}
33... Nh3 {[%clk 0:00:24.5]} 34. Bg4 {[%clk 0:00:15.4]} 34... Nf2 {[%clk
0:00:23.7]} 35. Bh5 {[%clk 0:00:15.9]} 35... Nh3 {[%clk 0:00:23]} 1/2-1/2

[Event "Early-Titled-Tuesday-Blitz-October-24-2023"]
[Site "Chess.com"]
[Date "2023.10.24"]
[Round "1"]
[White "SlippperyWhenWet"]
[Black "Andrei_Skvortsov"]
[Result "0-1"]
[WhiteElo "2349"]
[BlackElo "2662"]
[TimeControl "180+1"]
[EndTime "8:06:59 PDT"]
[Termination "Andrei_Skvortsov won by resignation"]

1. e4 {[%clk 0:02:59.7]} 1... c5 {[%clk 0:03:00.2]} 2. Nf3 {[%clk 0:02:59.3]}
2... d6 {[%clk 0:03:00.6]} 3. d4 {[%clk 0:02:59.6]} 3... Nf6 {[%clk 0:03:00.9]}
4. Nc3 {[%clk 0:02:59.6]} 4... cxd4 {[%clk 0:03:01.5]} 5. Nxd4 {[%clk
0:02:59.7]} 5... g6 {[%clk 0:03:01.8]} 6. Be2 {[%clk 0:02:58.6]} 6... Bg7 {[%clk
0:03:02]} 7. O-O {[%clk 0:02:58.4]} 7... O-O {[%clk 0:03:02.3]} 8. h3 {[%clk
0:02:55]} 8... Nc6 {[%clk 0:03:01.2]} 9. Be3 {[%clk 0:02:54]} 9... d5 {[%clk
0:03:00.4]} 10. exd5 {[%clk 0:02:41.5]} 10... Nxd5 {[%clk 0:02:59.1]} 11. Nxc6
{[%clk 0:02:35.3]} 11... bxc6 {[%clk 0:02:58]} 12. Nxd5 {[%clk 0:02:29.4]} 12...
cxd5 {[%clk 0:02:58.9]} 13. c3 {[%clk 0:02:21]} 13... e5 {[%clk 0:02:58.6]} 14.
Qd2 {[%clk 0:02:19.3]} 14... d4 {[%clk 0:02:56.9]} 15. cxd4 {[%clk 0:02:16.6]}
15... exd4 {[%clk 0:02:56.8]} 16. Bf4 {[%clk 0:02:17.2]} 16... Be6 {[%clk
0:02:55.2]} 17. Bf3 {[%clk 0:02:15.4]} 17... Rc8 {[%clk 0:02:53]} 18. Rac1
{[%clk 0:02:13.1]} 18... Qb6 {[%clk 0:02:51.5]} 19. b3 {[%clk 0:02:08.6]} 19...
h5 {[%clk 0:02:49]} 20. Be4 {[%clk 0:01:57.6]} 20... Rc3 {[%clk 0:02:44.8]} 21.
Bd3 {[%clk 0:01:53.2]} 21... Rfc8 {[%clk 0:02:42.8]} 22. Rfe1 {[%clk 0:01:44.6]}
22... Rxc1 {[%clk 0:02:38.7]} 23. Rxc1 {[%clk 0:01:45.5]} 23... Rc3 {[%clk
0:02:38.5]} 24. Rxc3 {[%clk 0:01:18.7]} 24... dxc3 {[%clk 0:02:38.2]} 25. Qe2
{[%clk 0:01:14]} 25... Bd4 {[%clk 0:02:35.9]} 26. Kf1 {[%clk 0:01:02.7]} 26...
a5 {[%clk 0:02:32.3]} 27. Be3 {[%clk 0:00:55.6]} 27... Bxe3 {[%clk 0:02:30.8]}
28. Qxe3 {[%clk 0:00:56.3]} 28... Qc7 {[%clk 0:02:19]} 29. Bc2 {[%clk
0:00:46.9]} 29... a4 {[%clk 0:02:18.1]} 30. Ke2 {[%clk 0:00:43.5]} 30... axb3
{[%clk 0:02:17.6]} 31. axb3 {[%clk 0:00:43.6]} 31... Qc6 {[%clk 0:02:12.2]} 32.
f3 {[%clk 0:00:31.1]} 32... Qb5+ {[%clk 0:02:08.4]} 33. Qd3 {[%clk 0:00:27.7]}
33... Qe5+ {[%clk 0:02:08.2]} 34. Qe3 {[%clk 0:00:27.6]} 34... Qg3 {[%clk
0:02:04]} 35. Qf2 {[%clk 0:00:27.1]} 35... Qc7 {[%clk 0:02:03]} 36. Qd4 {[%clk
0:00:26.7]} 36... Qa5 {[%clk 0:01:48.1]} 37. h4 {[%clk 0:00:24.9]} 37... Bf5
{[%clk 0:01:34.2]} 38. Bxf5 {[%clk 0:00:22.3]} 38... gxf5 {[%clk 0:01:34.6]} 39.
Kd3 {[%clk 0:00:20]} 39... Qa2 {[%clk 0:01:21.9]} 40. Qxc3 {[%clk 0:00:19.6]}
40... Qxg2 {[%clk 0:01:22]} 41. Qf6 {[%clk 0:00:19.9]} 41... Qxf3+ {[%clk
0:01:21.6]} 42. Kc4 {[%clk 0:00:20.7]} 42... Qe4+ {[%clk 0:01:20.1]} 43. Kc5
{[%clk 0:00:20.1]} 43... f4 {[%clk 0:01:16.6]} 44. Qg5+ {[%clk 0:00:20.1]} 44...
Kf8 {[%clk 0:01:16]} 45. Qd8+ {[%clk 0:00:19.9]} 45... Kg7 {[%clk 0:01:15.7]}
46. Qg5+ {[%clk 0:00:20.2]} 46... Qg6 {[%clk 0:01:11.2]} 47. Qxf4 {[%clk
0:00:19.7]} 47... Qc2+ {[%clk 0:01:10.8]} 48. Qc4 {[%clk 0:00:18.1]} 48... Qf2+
{[%clk 0:01:10.9]} 49. Kb5 {[%clk 0:00:18.2]} 49... f5 {[%clk 0:01:10.1]} 50. b4
{[%clk 0:00:17.2]} 50... f4 {[%clk 0:01:09.5]} 51. Qc7+ {[%clk 0:00:17.7]} 51...
Kf6 {[%clk 0:01:09.4]} 52. Qd6+ {[%clk 0:00:18]} 52... Kf5 {[%clk 0:01:09.6]}
53. Qc5+ {[%clk 0:00:16.5]} 53... Qxc5+ {[%clk 0:01:08.5]} 54. bxc5 {[%clk
0:00:17.4]} 54... f3 {[%clk 0:01:08.4]} 55. c6 {[%clk 0:00:18.3]} 55... f2
{[%clk 0:01:08.9]} 56. c7 {[%clk 0:00:18.8]} 56... f1=Q+ {[%clk 0:01:09.5]} 57.
Kb6 {[%clk 0:00:19.7]} 57... Qc4 {[%clk 0:01:06.7]} 58. Kb7 {[%clk 0:00:20.3]}
58... Kg4 {[%clk 0:01:05.9]} 59. c8=Q+ {[%clk 0:00:20.1]} 59... Qxc8+ {[%clk
0:01:06.8]} 60. Kxc8 {[%clk 0:00:21]} 60... Kxh4 {[%clk 0:01:07.4]} 61. Kd7
{[%clk 0:00:21.9]} 61... Kg3 {[%clk 0:01:08]} 62. Ke6 {[%clk 0:00:22.8]} 62...
h4 {[%clk 0:01:08.9]} 0-1

[Event "Early-Titled-Tuesday-Blitz-October-24-2023"]
[Site "Chess.com"]
[Date "2023.10.24"]
[Round "1"]
[White "JiaHaoxiang"]
[Black "EdmundPlayer"]
[Result "1-0"]
[WhiteElo "2581"]
[BlackElo "2248"]
[TimeControl "180+1"]
[EndTime "8:07:01 PDT"]
[Termination "JiaHaoxiang won by resignation"]

1. d4 {[%clk 0:02:51.7]} 1... Nf6 {[%clk 0:02:57.4]} 2. Bf4 {[%clk 0:02:28.9]}
2... d5 {[%clk 0:02:54.2]} 3. Nf3 {[%clk 0:02:27.6]} 3... c5 {[%clk 0:02:53.4]}
4. c3 {[%clk 0:02:25.8]} 4... Qb6 {[%clk 0:02:47.1]} 5. Qb3 {[%clk 0:02:24.2]}
5... c4 {[%clk 0:02:45.8]} 6. Qc2 {[%clk 0:02:20.8]} 6... Nc6 {[%clk 0:02:43.7]}
7. h3 {[%clk 0:02:18]} 7... Bf5 {[%clk 0:02:41.1]} 8. Qc1 {[%clk 0:02:17.4]}
8... e6 {[%clk 0:02:37.3]} 9. e3 {[%clk 0:02:14.3]} 9... Be7 {[%clk 0:02:36.6]}
10. Nbd2 {[%clk 0:02:10.3]} 10... h6 {[%clk 0:02:31.4]} 11. g4 {[%clk
0:02:08.1]} 11... Bh7 {[%clk 0:02:27.2]} 12. Bg2 {[%clk 0:02:04.4]} 12... O-O
{[%clk 0:02:26.4]} 13. O-O {[%clk 0:01:57.3]} 13... Rfc8 {[%clk 0:02:22.9]} 14.
Ne5 {[%clk 0:01:51.5]} 14... Nxe5 {[%clk 0:02:21.9]} 15. Bxe5 {[%clk 0:01:51.1]}
15... Bd3 {[%clk 0:02:09]} 16. Re1 {[%clk 0:01:47.7]} 16... Nd7 {[%clk
0:02:08.3]} 17. Bg3 {[%clk 0:01:46.5]} 17... Bd6 {[%clk 0:01:30.5]} 18. f4
{[%clk 0:01:29.2]} 18... Qd8 {[%clk 0:01:29.2]} 19. e4 {[%clk 0:01:23.5]} 19...
dxe4 {[%clk 0:01:22]} 20. Nxe4 {[%clk 0:01:21.7]} 20... Bc7 {[%clk 0:01:06.4]}
21. Qe3 {[%clk 0:01:13.9]} 21... Rab8 {[%clk 0:00:53.2]} 22. Rad1 {[%clk
0:01:00.5]} 22... b5 {[%clk 0:00:49.6]} 23. Qf2 {[%clk 0:00:50]} 23... a5 {[%clk
0:00:42.8]} 24. Bh4 {[%clk 0:00:44.3]} 24... Qf8 {[%clk 0:00:35.4]} 25. f5
{[%clk 0:00:43.1]} 25... exf5 {[%clk 0:00:31.1]} 26. gxf5 {[%clk 0:00:42.7]}
26... f6 {[%clk 0:00:27.5]} 27. Bg3 {[%clk 0:00:27.3]} 27... b4 {[%clk
0:00:23.5]} 28. Bxc7 {[%clk 0:00:23.7]} 28... Rxc7 {[%clk 0:00:23.8]} 29. Qg3
{[%clk 0:00:23.8]} 29... Rcc8 {[%clk 0:00:15.8]} 30. Nd6 {[%clk 0:00:24]} 30...
Rd8 {[%clk 0:00:14.9]} 31. Bd5+ {[%clk 0:00:24.4]} 31... Kh8 {[%clk 0:00:10]}
32. Nf7+ {[%clk 0:00:24.4]} 32... Kg8 {[%clk 0:00:07.7]} 33. Nxh6+ {[%clk
0:00:23.4]} 33... Kh8 {[%clk 0:00:08]} 34. Nf7+ {[%clk 0:00:23.5]} 34... Kg8
{[%clk 0:00:08]} 35. Nxd8+ {[%clk 0:00:21.7]} 1-0

[Event "Early-Titled-Tuesday-Blitz-October-24-2023"]
[Site "Chess.com"]
[Date "2023.10.24"]
[Round "1"]
[White "nihalsarin"]
[Black "motivated_bishop"]
[Result "0-1"]
[WhiteElo "3117"]
[BlackElo "2537"]
[TimeControl "180+1"]
[EndTime "8:07:02 PDT"]
[Termination "motivated_bishop won by resignation"]

1. a3 {[%clk 0:03:00.9]} 1... e5 {[%clk 0:02:59.8]} 2. c4 {[%clk 0:02:59.7]}
2... Nf6 {[%clk 0:02:59.5]} 3. Nc3 {[%clk 0:02:57.2]} 3... d5 {[%clk 0:02:59.3]}
4. cxd5 {[%clk 0:02:58.1]} 4... Nxd5 {[%clk 0:02:59.9]} 5. Nf3 {[%clk
0:02:58.5]} 5... Nc6 {[%clk 0:02:59.8]} 6. e4 {[%clk 0:02:58.8]} 6... Nxc3
{[%clk 0:03:00]} 7. bxc3 {[%clk 0:02:59.3]} 7... Bc5 {[%clk 0:02:59.7]} 8. Bb5
{[%clk 0:02:58.3]} 8... Bg4 {[%clk 0:02:52.4]} 9. h3 {[%clk 0:02:55.5]} 9...
Bxf3 {[%clk 0:02:50.6]} 10. Qxf3 {[%clk 0:02:56.4]} 10... O-O {[%clk 0:02:51.1]}
11. O-O {[%clk 0:02:56.2]} 11... Qd6 {[%clk 0:02:45]} 12. d3 {[%clk 0:02:53.4]}
12... a6 {[%clk 0:02:44.6]} 13. Bc4 {[%clk 0:02:53.2]} 13... b5 {[%clk
0:02:44.2]} 14. Bb3 {[%clk 0:02:52]} 14... Rad8 {[%clk 0:02:43.3]} 15. Rd1
{[%clk 0:02:52]} 15... Kh8 {[%clk 0:02:27.5]} 16. g3 {[%clk 0:02:51.8]} 16...
Ne7 {[%clk 0:02:21.1]} 17. Kg2 {[%clk 0:02:27.1]} 17... f5 {[%clk 0:02:15.4]}
18. Ra2 {[%clk 0:02:27.8]} 18... a5 {[%clk 0:02:05.4]} 19. a4 {[%clk 0:02:17.8]}
19... b4 {[%clk 0:01:56.7]} 20. cxb4 {[%clk 0:02:14.6]} 20... axb4 {[%clk
0:01:54.9]} 21. Rc2 {[%clk 0:02:07.3]} 21... Nc6 {[%clk 0:01:48.9]} 22. Bb2
{[%clk 0:01:58.7]} 22... Nd4 {[%clk 0:01:23.4]} 23. Bxd4 {[%clk 0:01:58]} 23...
Bxd4 {[%clk 0:01:24.3]} 24. exf5 {[%clk 0:01:57.1]} 24... c5 {[%clk 0:01:18.2]}
25. Qe4 {[%clk 0:01:56.1]} 25... g6 {[%clk 0:01:04.7]} 26. fxg6 {[%clk
0:01:54.5]} 26... hxg6 {[%clk 0:01:03.6]} 27. Bc4 {[%clk 0:01:48.5]} 27... Kg7
{[%clk 0:01:01.5]} 28. a5 {[%clk 0:01:45.2]} 28... Rf6 {[%clk 0:00:48.5]} 29. a6
{[%clk 0:01:45]} 29... Rdf8 {[%clk 0:00:47.1]} 30. a7 {[%clk 0:01:44.7]} 30...
Rxf2+ {[%clk 0:00:33.9]} 31. Rxf2 {[%clk 0:01:44.4]} 31... Rxf2+ {[%clk
0:00:34.7]} 32. Kh1 {[%clk 0:01:45]} 32... Qd7 {[%clk 0:00:35]} 33. g4 {[%clk
0:01:18.2]} 33... Qxa7 {[%clk 0:00:35.1]} 34. Qd5 {[%clk 0:01:12.7]} 34... Qb8
{[%clk 0:00:27.1]} 35. Qe4 {[%clk 0:00:42.1]} 35... Qf8 {[%clk 0:00:20.5]} 36.
Qb7+ {[%clk 0:00:35.2]} 36... Kh8 {[%clk 0:00:20.2]} 37. Qe4 {[%clk 0:00:20.8]}
37... Rf1+ {[%clk 0:00:18.9]} 38. Kh2 {[%clk 0:00:20]} 38... Qf2+ {[%clk
0:00:17]} 39. Qg2 {[%clk 0:00:20.4]} 39... Qxg2+ {[%clk 0:00:16.5]} 40. Kxg2
{[%clk 0:00:21.3]} 40... Rxd1 {[%clk 0:00:17.1]} 0-1